fUSD/lending_fUSD_20250123
["ID","MTS","AMOUNT","RATE_DAILY","PERIOD"]
[350141623,1737649860296,-1547.12,0.00018698,2]
[350141624,1737649860305,-500.0,0.00018699,2]
[350141625,1737649860315,-500.0,0.00018699,2]
[350141626,1737649860325,-604.87647989,0.00018699,2]
[350141627,1737649860334,-500.0,0.00018699,2]
[350141628,1737649860343,-500.0,0.00018699,2]
[350141629,1737649860353,-500.0,0.00018699,2]
[350141630,1737649860363,-824.5,0.00018699,2]
[350141631,1737649860372,-500.0,0.00018699,2]
[350141632,1737649860382,-657.94,0.00018699,2]
[350141633,1737649860391,-1263.57,0.00018699,2]
[350141634,1737649860401,-927.43,0.00018699,2]
[350141635,1737649860410,-500.0,0.00018699,2]
[350141636,1737649860419,-1727.96,0.00018699,2]
[350141637,1737649860429,-548.38,0.00018699,2]
[350141638,1737649860439,-2478.47,0.00018699,2]
[350141639,1737649860448,-505.2,0.00018699,2]
[350141640,1737649860458,-500.0,0.00018699,2]
[350141641,1737649860467,-655.25,0.00018699,2]
[350141642,1737649860478,-500.0,0.00018699,2]
[350141643,1737649860493,-871.19,0.00018699,2]
[350141644,1737649860503,-685.35,0.00018699,2]
[350141645,1737649860514,-510.83,0.00018699,2]
[350141646,1737649860530,-222.84,0.00018699,2]
[350141647,1737649860539,-752.05,0.00018699,2]
[350141648,1737649860549,-2502.39,0.00018699,2]
[350141649,1737649860559,-500.0,0.000187,2]
[350141650,1737649860568,-610.88,0.000187,2]
[350141651,1737649860577,-621.55,0.000187,2]
[350141652,1737649860587,-500.0,0.000187,2]
[350141653,1737649860597,-500.0,0.000187,2]
[350141654,1737649860607,-500.0,0.000187,2]
[350141655,1737649860616,-500.0,0.000187,2]
[350141656,1737649860625,-595.58,0.000187,2]
[350141657,1737649860634,-293.44,0.000187,2]
[350141658,1737649860643,-500.0,0.000187,2]
[350141659,1737649860652,-374.65765271,0.000187,2]
[350141660,1737649860662,-500.0,0.000187,2]
[350141661,1737649860671,-500.0,0.000187,2]
[350141662,1737649860680,-192.2276384,0.000187,2]
[350141663,1737649860689,-342.68,0.000187,2]
[350141664,1737649860698,-500.0,0.000187,2]
[350141665,1737649860707,-500.0,0.000187,2]
[350141666,1737649860717,-500.0,0.000187,2]
[350141667,1737649860726,-500.0,0.000187,2]
[350141668,1737649860735,-500.0,0.000187,2]
[350141669,1737649860744,-500.0,0.000187,2]
[350141670,1737649860753,-500.0,0.000187,2]
[350141671,1737649860763,-500.0,0.000187,2]
[350141672,1737649860774,-500.0,0.000187,2]
[350141673,1737649860783,-500.0,0.000187,2]
[350141674,1737649860793,-500.0,0.000187,2]
[350141675,1737649860802,-500.0,0.000187,2]
[350141676,1737649860812,-500.0,0.000187,2]
[350141677,1737649860822,-2076.69,0.000187,2]
[350141678,1737649860831,-628.58,0.000187,2]
[350141679,1737649860841,-500.0,0.000187,2]
[350141680,1737649860851,-500.0,0.000187,2]
[350141681,1737649860861,-500.0,0.000187,2]
[350141682,1737649860871,-1165.29,0.000187,2]
[350141683,1737649860880,-500.0,0.000187,2]
[350141684,1737649860890,-500.0,0.000187,2]
[350141685,1737649860899,-658.97,0.000187,2]
[350141686,1737649860909,-500.0,0.000187,2]
[350141687,1737649860918,-500.0,0.000187,2]
[350141688,1737649860928,-500.0,0.000187,2]
[350141689,1737649860937,-811.15,0.000187,2]
[350141690,1737649860947,-500.0,0.000187,2]
[350141691,1737649860957,-829.28,0.000187,2]
[350141692,1737649860967,-500.0,0.000187,2]
[350141693,1737649860976,-736.71,0.000187,2]
[350141694,1737649860986,-500.0,0.000187,2]
[350141695,1737649860995,-505.14390889,0.000187,2]
[350141696,1737649861005,-500.0,0.000187,2]
[350141697,1737649861015,-500.0,0.000187,2]
[350141698,1737649861027,-611.8619364,0.000187,2]
[350141699,1737649861038,-500.0,0.000187,2]
[350141700,1737649861048,-800.07,0.000187,2]
[350141701,1737649861057,-530.33,0.000187,2]
[350141702,1737649861066,-500.0,0.000187,2]
[350141703,1737649861076,-500.0,0.000187,2]
[350141704,1737649861085,-500.0,0.000187,2]
[350141705,1737649861094,-874.38,0.000187,2]
[350141706,1737649861103,-500.0,0.000187,2]
[350141707,1737649861113,-500.0,0.000187,2]
[350141708,1737649861123,-500.0,0.000187,2]
[350141709,1737649861133,-500.0,0.000187,2]
[350141710,1737649861142,-642.43,0.000187,2]
[350141711,1737649861152,-500.0,0.000187,2]
[350141712,1737649861162,-517.21,0.000187,2]
[350141713,1737649861271,-500.0,0.000187,2]
[350141714,1737649861283,-1130.41,0.000187,2]
[350141715,1737649861293,-2840.42,0.000187,2]
[350141716,1737649861304,-569.84,0.000187,2]
[350141717,1737649861314,-576.33,0.000187,2]
[350141718,1737649861323,-216.16153607,0.000187,2]
[350141719,1737649861333,-872.83,0.000187,2]
[350141720,1737649861343,-182943.80395325,0.000187,2]
[350141721,1737649861352,-160.36,0.00018701,2]
[350141722,1737649861362,-500.0,0.00018701,2]
[350141723,1737649861371,-500.0,0.00018701,2]
[350141724,1737649861381,-500.0,0.00018701,2]
[350141725,1737649861390,-500.0,0.00018701,2]
[350141726,1737649861399,-500.0,0.00018702,2]
[350141727,1737649861409,-1313.1570865,0.00018714,2]
[350141728,1737649861419,-144525.95804429,0.0001875,2]
[350141729,1737649861429,-793.52,0.00018751,2]
[350141730,1737649861439,-1062.07364942,0.00018762,2]
[350141731,1737649861448,-153.36962406,0.00018798,2]
[350141732,1737649861458,-500.0,0.00018848,2]
[350141733,1737649861467,-430.64066539,0.00018873,2]
[350141734,1737649861476,-220.0,0.00018875,2]
[350141735,1737649861486,-4622.8511,0.000189,2]
[350141736,1737649861496,-381.21088448,0.000189,2]
[350141737,1737649861505,-1313.1570865,0.000189,2]
[350141738,1737649861516,-1000.0,0.000189,2]
[350141739,1737649861530,-617.15457176,0.000189,2]
[350141740,1737649861539,-500.0,0.00018904,2]
[350141741,1737649861549,-521.44,0.00018904,2]
[350141742,1737649861559,-1279.29,0.00018904,2]
[350141743,1737649861568,-510.28,0.00018904,2]
[350141744,1737649861578,-947.08,0.00018904,2]
[350141745,1737649861587,-553.6,0.00018904,2]
[350141746,1737649861597,-847.08,0.00018904,2]
[350141747,1737649861606,-950.19,0.00018904,2]
[350141748,1737649861616,-595.85,0.00018904,2]
[350141749,1737649861625,-535.73,0.00018904,2]
[350141750,1737649861634,-1421.67,0.00018904,2]
[350141751,1737649861644,-500.0,0.00018904,2]
[350141752,1737649861653,-1179.67,0.00018904,2]
[350141753,1737649861663,-500.0,0.00018904,2]
[350141754,1737649861672,-1476.14,0.00018904,2]
[350141755,1737649861682,-977.58,0.00018904,2]
[350141756,1737649861692,-578.01,0.00018904,2]
[350141757,1737649861701,-500.0,0.00018904,2]
[350141758,1737649861711,-1107.03,0.00018904,2]
[350141759,1737649861720,-500.0,0.00018904,2]
[350141760,1737649861729,-502.76,0.00018904,2]
[350141761,1737649861739,-500.0,0.00018904,2]
[350141762,1737649861749,-185.84479309,0.00018932,2]
[350141763,1737649861758,-452.764009,0.00018972,2]
[350141764,1737649861768,-500.0,0.00018972,2]
[350141765,1737649861780,-505.42,0.00018972,2]
[350141766,1737649861791,-278.061044,0.00018972,2]
[350141767,1737649861800,-793.57,0.00018972,2]
[350141768,1737649861810,-500.0,0.00018972,2]
[350141769,1737649861820,-1666.21,0.00018972,2]
[350141770,1737649861829,-633.72,0.00018972,2]
[350141771,1737649861839,-784.7,0.00018972,2]
[350141772,1737649861848,-1227.74,0.00018972,2]
[350141773,1737649861858,-166.838368,0.00018972,2]
[350141774,1737649861867,-811.43,0.00018972,2]
[350141775,1737649861876,-1177.29,0.00018972,2]
[350141776,1737649861886,-184.294856,0.00018972,2]
[350141777,1737649861895,-500.0,0.00018972,2]
[350141778,1737649861904,-508.16,0.00018972,2]
[350141779,1737649861914,-1189.48,0.00018972,2]
[350141780,1737649861924,-593.34,0.00018972,2]
[350141781,1737649861934,-911.17,0.00018972,2]
[350141782,1737649861943,-534.84,0.00018972,2]
[350141783,1737649861953,-1547.12,0.00018972,2]
[350141784,1737649861962,-150.0,0.00018973,2]
[350141785,1737649861971,-666.0,0.00018973,2]
[350141786,1737649861981,-162.16,0.00018973,2]
[350141787,1737649861990,-500.0,0.00018973,2]
[350141788,1737649861999,-421.3359968,0.00018973,2]
[350141789,1737649862009,-500.0,0.00018973,2]
[350141790,1737649862018,-500.0,0.00018973,2]
[350141791,1737649862029,-824.5,0.00018973,2]
[350141792,1737649862038,-500.0,0.00018973,2]
[350141793,1737649862047,-657.94,0.00018973,2]
[350141794,1737649862056,-1263.57,0.00018973,2]
[350141795,1737649862066,-927.43,0.00018973,2]
[350141796,1737649862075,-581.46,0.00018973,2]
[350141797,1737649862085,-1727.96,0.00018973,2]
[350141798,1737649862094,-548.38,0.00018973,2]
[350141799,1737649862104,-2478.47,0.00018973,2]
[350141800,1737649862115,-505.2,0.00018973,2]
[350141801,1737649862125,-500.0,0.00018973,2]
[350141802,1737649862134,-655.25,0.00018973,2]
[350141803,1737649862145,-500.0,0.00018973,2]
[350141804,1737649862154,-871.19,0.00018973,2]
[350141805,1737649862166,-685.35,0.00018973,2]
[350141806,1737649862175,-510.83,0.00018973,2]
[350141807,1737649862184,-752.05,0.00018973,2]
[350141808,1737649862193,-2502.39,0.00018973,2]
[350141809,1737649862202,-194.88812724,0.00018973,2]
[350141810,1737649862211,-500.0,0.00018974,2]
[350141811,1737649862220,-500.0,0.00018974,2]
[350141812,1737649862231,-500.0,0.00018974,2]
[350141813,1737649862250,-500.0,0.00018974,2]
[350141814,1737649862259,-244.7,0.00018974,2]
[350141815,1737649862268,-608.9,0.00018974,2]
[350141816,1737649862278,-500.0,0.00018974,2]
[350141817,1737649862287,-197.31385011,0.00018974,2]
[350141818,1737649862298,-500.0,0.00018974,2]
[350141819,1737649862307,-500.0,0.00018974,2]
[350141820,1737649862316,-500.0,0.00018974,2]
[350141821,1737649862327,-500.0,0.00018974,2]
[350141822,1737649862336,-500.0,0.00018974,2]
[350141823,1737649862346,-500.0,0.00018974,2]
[350141824,1737649862355,-500.0,0.00018974,2]
[350141825,1737649862365,-500.0,0.00018974,2]
[350141826,1737649862374,-500.0,0.00018974,2]
[350141827,1737649862384,-500.0,0.00018974,2]
[350141828,1737649862394,-500.0,0.00018974,2]
[350141829,1737649862403,-500.0,0.00018974,2]
[350141830,1737649862412,-2076.69,0.00018974,2]
[350141831,1737649862422,-628.58,0.00018974,2]
[350141832,1737649862431,-500.0,0.00018974,2]
[350141833,1737649862441,-1165.29,0.00018974,2]
[350141834,1737649862451,-434.076737,0.00018974,2]
[350141835,1737649862460,-500.0,0.00018974,2]
[350141836,1737649862469,-658.97,0.00018974,2]
[350141837,1737649862479,-421.33,0.00018974,2]
[350141838,1737649862489,-500.0,0.00018974,2]
[350141839,1737649862499,-151.0,0.00018974,2]
[350141840,1737649862510,-500.0,0.00018974,2]
[350141841,1737649862522,-811.15,0.00018974,2]
[350141842,1737649862534,-500.0,0.00018974,2]
[350141843,1737649862543,-829.28,0.00018974,2]
[350141844,1737649862553,-1286.518073,0.00018974,2]
[350141845,1737649862562,-736.71,0.00018974,2]
[350141846,1737649862572,-500.0,0.00018974,2]
[350141847,1737649862581,-151.0,0.00018974,2]
[350141848,1737649862590,-500.0,0.00018974,2]
[350141849,1737649862602,-800.07,0.00018974,2]
[350141850,1737649862613,-500.0,0.00018974,2]
[350141851,1737649862622,-530.33,0.00018974,2]
[350141852,1737649862632,-500.0,0.00018974,2]
[350141853,1737649862641,-634.91996325,0.00018974,2]
[350141854,1737649862651,-874.38,0.00018974,2]
[350141855,1737649862660,-500.0,0.00018974,2]
[350141856,1737649862669,-500.0,0.00018974,2]
[350141857,1737649862678,-501.921553,0.00018974,2]
[350141858,1737649862688,-501.921553,0.00018974,2]
[350141859,1737649862697,-500.0,0.00018974,2]
[350141860,1737649862706,-495.833193,0.00018974,2]
[350141861,1737649862716,-495.833193,0.00018974,2]
[350141862,1737649862725,-151.0,0.00018974,2]
[350141863,1737649862734,-500.0,0.00018974,2]
[350141864,1737649862744,-151.0,0.00018974,2]
[350141865,1737649862754,-642.43,0.00018974,2]
[350141866,1737649862764,-151.0,0.00018974,2]
[350141867,1737649862773,-517.21,0.00018974,2]
[350141868,1737649862784,-151.0,0.00018974,2]
[350141869,1737649862794,-1130.41,0.00018974,2]
[350141870,1737649862804,-172.55151,0.00018974,2]
[350141871,1737649862813,-2840.42,0.00018974,2]
[350141872,1737649862823,-151.0,0.00018974,2]
[350141873,1737649862832,-569.84,0.00018974,2]
[350141874,1737649862842,-576.33,0.00018974,2]
[350141875,1737649862852,-872.83,0.00018974,2]
[350141876,1737649862861,-500.0,0.00018975,2]
[350141877,1737649862870,-500.0,0.00018975,2]
[350141878,1737649862880,-500.0,0.00018975,2]
[350141879,1737649862890,-500.0,0.00018975,2]
[350141880,1737649862899,-569.77711425,0.00018976,2]
[350141881,1737649862909,-54185.37151119,0.00018999,2]
[350141882,1737649863714,-286.88553038,0.00018999,2]
[350141883,1737649863810,-500.0,0.00016438,2]
[350141884,1737649863821,-482.50500001,0.00016438,2]
[350141885,1737649863835,-17.49499999,0.00016438,2]
[350141886,1737649863845,-500.0,0.00016712,2]
[350141887,1737649863856,-275.21234793,0.00016986,2]
[350141888,1737649863869,-224.78765207,0.00016986,2]
[350141889,1737649863881,-500.0,0.0001733,2]
[350141890,1737649863891,-1358.62287467,0.000174,5]
[350141891,1737649863919,-500.0,0.00016712,2]
[350141892,1737649863930,-2568.37712533,0.000174,5]
[350141893,1737649863941,-500.0,0.00017604,2]
[350141894,1737649863952,-500.0,0.00017878,2]
[350141895,1737649863963,-873.96406,0.000179,2]
[350141896,1737649863975,-182.7,0.00018152,2]
[350141897,1737649863986,-9703.04997253,0.00018999,2]
[350141898,1737649864004,-22854.04539012,0.00018999,2]
[350141899,1737649864583,-500.0,0.00016438,2]
[350141900,1737649864595,-500.0,0.00016438,2]
[350141901,1737649864607,-500.0,0.00016438,2]
[350141902,1737649864618,-500.0,0.00016712,2]
[350141903,1737649864628,-500.0,0.00016712,2]
[350141904,1737649864638,-500.0,0.00016712,2]
[350141905,1737649864648,-500.0,0.00016986,2]
[350141906,1737649864658,-500.0,0.00016986,2]
[350141907,1737649864668,-500.0,0.00016986,2]
[350141908,1737649864678,-500.0,0.0001726,2]
[350141909,1737649864688,-500.0,0.0001726,2]
[350141910,1737649864698,-500.0,0.00017328,2]
[350141911,1737649864708,-414.789155,0.0001733,2]
[350141912,1737649864720,-85.210845,0.0001733,2]
[350141913,1737649864730,-500.0,0.00017534,2]
[350141914,1737649864740,-500.0,0.00017604,2]
[350141915,1737649864750,-500.0,0.00017604,2]
[350141916,1737649864760,-500.0,0.00017878,2]
[350141917,1737649864770,-500.0,0.00017878,2]
[350141918,1737649864782,-500.0,0.00018152,2]
[350141919,1737649864792,-500.0,0.00018152,2]
[350141920,1737649864803,-500.0,0.00018426,2]
[350141921,1737649864813,-500.0,0.00018426,2]
[350141922,1737649864822,-500.0,0.000187,2]
[350141923,1737649864832,-500.0,0.000187,2]
[350141924,1737649864842,-153.36962404,0.00018798,2]
[350141925,1737649864851,-330.02,0.00018974,2]
[350141926,1737649864862,-83308.92617143,0.00018999,2]
[350141927,1737649864871,-151.0,0.00018999,2]
[350141928,1737649864880,-151.0,0.00018999,2]
[350141929,1737649864890,-151.0,0.00018999,2]
[350141930,1737649864901,-151.0,0.00018999,2]
[350141931,1737649864911,-266.590664,0.00018999,2]
[350141932,1737649864920,-151.0,0.00018999,2]
[350141933,1737649864930,-151.0,0.00018999,2]
[350141934,1737649864943,-153.564244,0.00018999,2]
[350141935,1737649864953,-344.665755,0.00018999,2]
[350141936,1737649864963,-151.0,0.00018999,2]
[350141937,1737649864972,-151.0,0.00018999,2]
[350141938,1737649864983,-344.665755,0.00018999,2]
[350141939,1737649864993,-151.0,0.00018999,2]
[350141940,1737649865002,-500.0,0.00018999,2]
[350141941,1737649865012,-151.0,0.00018999,2]
[350141942,1737649865021,-462.961771,0.00018999,2]
[350141943,1737649865035,-462.961771,0.00018999,2]
[350141944,1737649865044,-151.0,0.00018999,2]
[350141945,1737649865054,-18936.59,0.00019,2]
[350141946,1737649865064,-4199.79010954,0.00019,2]
[350141947,1737649865074,-1000.0,0.00019,2]
[350141948,1737649865084,-921589.77640759,0.00019,2]
[350141949,1737649865096,-500050.0,0.00019,2]
[350141950,1737649865124,-508.68685267,0.00016438,2]
[350141951,1737649865134,-500.0,0.0001726,2]
[350141952,1737649865143,-500.0,0.00017808,2]
[350141953,1737649865152,-13933.27183775,0.00019,2]
[350141954,1737649865164,-2094.05980958,0.00019,2]
[350141955,1737649865182,-500.0,0.00016438,2]
[350141956,1737649865191,-233659.7740725,0.00019,2]
[350141957,1737649865215,-3225.74725759,0.000119,2]
[350141958,1737649865224,-286.82738845,0.00017602,2]
[350141959,1737649865238,-213.17261155,0.00017602,2]
[350141960,1737649865247,-42486.82738845,0.00019,2]
[350141961,1737649865258,-13791.0,0.00019,2]
[350141962,1737649865271,-1625.02395,0.00019,2]
[350141963,1737649865291,-500.0,0.00017534,2]
[350141964,1737649865310,-1028.61154942,0.00019,2]
[350141965,1737649865367,-500.0,0.00016712,2]
[350141966,1737649865382,-500.0,0.00017876,2]
[350141967,1737649865398,-500.0,0.00018082,2]
[350141968,1737649865414,-91.65,0.00019,2]
[350141969,1737649865436,-1069206.3704449,0.00019,2]
[350141970,1737649865892,-500.0,0.00016438,2]
[350141971,1737649865902,-168.985696,0.00016438,2]
[350141972,1737649865912,-500.0,0.00016438,2]
[350141973,1737649865921,-500.0,0.00016712,2]
[350141974,1737649865931,-151.35627749,0.00016901,20]
[350141975,1737649865942,-500.0,0.00016986,2]
[350141976,1737649865958,-500.0,0.00016986,2]
[350141977,1737649865970,-500.0,0.0001726,2]
[350141978,1737649865980,-168.985696,0.0001726,2]
[350141979,1737649865990,-10.67233051,0.0001733,2]
[350141980,1737649866001,-326.79956851,0.0001733,2]
[350141981,1737649866011,-500.0,0.0001733,2]
[350141982,1737649866023,-500.0,0.0001733,2]
[350141983,1737649866046,-336.20611312,0.00017534,2]
[350141984,1737649866064,-500.0,0.00016712,2]
[350141985,1737649866074,-163.79388688,0.00017534,2]
[350141986,1737649866083,-500.0,0.00017604,2]
[350141987,1737649866093,-500.0,0.00017808,2]
[350141988,1737649866103,-500.0,0.00017808,2]
[350141989,1737649866113,-500.0,0.00017878,2]
[350141990,1737649866123,-1158.34825014,0.000179,2]
[350141991,1737649866134,-4485.4126603,0.000179,2]
[350141992,1737649866144,-500.0,0.0001815,2]
[350141993,1737649866153,-500.0,0.00018356,2]
[350141994,1737649866163,-168.985696,0.00018356,2]
[350141995,1737649866172,-500.0,0.00018424,2]
[350141996,1737649866183,-156.22054108,0.0001863,2]
[350141997,1737649866216,-500.0,0.00017604,2]
[350141998,1737649866226,-343.77945892,0.0001863,2]
[350141999,1737649866544,-500.0,0.00018698,2]
[350142000,1737649866561,-153.36962404,0.00018798,2]
[350142001,1737649866570,-500.0,0.00018904,2]
[350142002,1737649866579,-410.13,0.00018972,2]
[350142003,1737649866589,-2910.72091704,0.00019,2]
[350142004,1737649866610,-500.0,0.00018152,2]
[350142005,1737649866619,-995586.53370671,0.00019,2]
[350142006,1737649866645,-500.0,0.00016986,2]
[350142007,1737649866655,-156126.00519156,0.00019,2]
[350142008,1737649866669,-3025.70203194,0.00019,2]
[350142009,1737649866682,-1157.6,0.00019,2]
[350142010,1737649866693,-5051.6,0.00019,2]
[350142011,1737649866704,-501.2,0.00019,2]
[350142012,1737649866715,-542.49,0.00019,2]
[350142016,1737650273222,186.33,0.00016658,30]
[350142017,1737650273268,186.33,0.00019242,30]
[350142018,1737650273708,186.33,0.00021826,30]
[350142019,1737650462039,499.29,0.000219,31]
[350142020,1737650462092,499.29,0.000219,31]
[350142021,1737650462152,499.29,0.000219,31]
[350142022,1737650462214,499.29,0.000219,31]
[350142023,1737650462275,499.29,0.000219,31]
[350142024,1737650462334,499.29,0.000219,31]
[350142025,1737650462392,499.29,0.000219,31]
[350142026,1737650462458,499.29,0.000219,31]
[350142027,1737650462530,499.29,0.000219,31]
[350142028,1737650462578,499.29,0.000219,31]
[350142029,1737650462640,499.29,0.000219,31]
[350142030,1737650462903,499.29,0.000219,31]
[350142031,1737650462953,499.29,0.000219,31]
[350142032,1737650462988,499.29,0.000219,31]
[350142033,1737650463018,499.29,0.000219,31]
[350142034,1737650463057,499.29,0.000219,31]
[350142075,1737651032195,-177.15,0.00010137,2]
[350142077,1737651032204,-909.44,0.00013536,2]
[350142079,1737651032214,-300.0,0.00013563,2]
[350142081,1737651032224,-31788.41074842,0.00013564,2]
[350142082,1737651032233,-150.67924215,0.00013695,2]
[350142083,1737651032243,-150.67924215,0.00013759,2]
[350142084,1737651032252,-150.67924215,0.00013824,2]
[350142085,1737651032262,-150.67924215,0.00013888,2]
[350142086,1737651032271,-150.67924215,0.00013953,2]
[350142087,1737651032281,-150.67924215,0.00014018,2]
[350142089,1737651032290,-191.76,0.00014044,2]
[350142090,1737651032299,-150.67924215,0.00014082,2]
[350142092,1737651032308,-150.67924215,0.00014147,2]
[350142094,1737651032318,-250.0,0.00014319,2]
[350142095,1737651032327,-1000.0,0.00014372,2]
[350142096,1737651032336,-2096.89,0.00014485,2]
[350142097,1737651032345,-176.63,0.00014576,2]
[350142098,1737651032354,-213.39,0.00014602,2]
[350142099,1737651032364,-616.041906,0.00014608,2]
[350142100,1737651032373,-150.0,0.0001463,2]
[350142101,1737651032383,-2800.462731,0.00014786,2]
[350142102,1737651032393,-731.61,0.00014822,2]
[350142103,1737651032402,-10387.49793827,0.00014899,2]
[350142104,1737651032422,-2306.89206173,0.00014899,2]
[350142105,1737651032431,-550.0,0.00015,2]
[350142106,1737651032441,-300.0,0.00015075,2]
[350142107,1737651032451,-3660.0,0.00015076,2]
[350142108,1737651032461,-2631.5,0.00015192,2]
[350142109,1737651032471,-1009.77,0.00015274,2]
[350142110,1737651032481,-328.96947225,0.00015336,2]
[350142111,1737651032491,-23900.0,0.00015337,2]
[350142112,1737651032500,-2080.68,0.00015418,2]
[350142113,1737651032510,-150.0,0.00015422,2]
[350142114,1737651032519,-1393.77,0.00015478,2]
[350142115,1737651032529,-1297.15,0.00015513,2]
[350142116,1737651032539,-250.0,0.00015513,2]
[350142117,1737651032548,-909.44,0.000158,2]
[350142118,1737651032557,-1000.0,0.00016168,2]
[350142119,1737651032569,-510.0,0.00016205,2]
[350142120,1737651032578,-266.025,0.00016238,2]
[350142121,1737651032587,-2428.38786852,0.00016238,2]
[350142122,1737651032599,-9637.27793148,0.00016238,2]
[350142123,1737651032608,-1377.0926,0.00016238,2]
[350142124,1737651032617,-223.63340945,0.00016238,2]
[350142125,1737651032627,-500.0,0.00016337,2]
[350142126,1737651032637,-402.21688497,0.00016337,2]
[350142127,1737651032647,-423.71268912,0.00016337,2]
[350142128,1737651032656,-378.99035774,0.00016337,2]
[350142129,1737651032666,-2513.92661582,0.00016338,2]
[350142130,1737651032675,-21349.8693,0.00016338,2]
[350142131,1737651032686,-5988.9222,0.00016338,2]
[350142132,1737651032696,-1562.3109,0.00016338,2]
[350142133,1737651032706,-82223.76670856,0.00016338,2]
[350142134,1737651032718,-5434.14898196,0.00016338,2]
[350142135,1737651032727,-5000.0,0.00016338,2]
[350142136,1737651032736,-581.0,0.000164,5]
[350142137,1737651032746,-250.0,0.00016406,2]
[350142138,1737651032755,-334.74987188,0.00016419,2]
[350142139,1737651032764,-213.39,0.00016428,2]
[350142140,1737651032773,-1274.11,0.00016428,2]
[350142141,1737651032782,-500.0,0.00016438,2]
[350142142,1737651032791,-500.0,0.00016438,2]
[350142143,1737651032800,-500.0,0.00016438,2]
[350142144,1737651032809,-500.0,0.00016438,2]
[350142145,1737651032818,-500.0,0.00016438,2]
[350142146,1737651032828,-519.8585637,0.00016438,2]
[350142147,1737651032836,-500.0,0.00016438,2]
[350142148,1737651032845,-500.0,0.00016438,2]
[350142150,1737651032855,-500.0,0.00016438,2]
[350142152,1737651032865,-500.0,0.00016438,2]
[350142153,1737651032874,-500.0,0.00016438,2]
[350142154,1737651032883,-500.0,0.00016438,2]
[350142155,1737651032892,-500.0,0.00016438,2]
[350142157,1737651032902,-500.0,0.00016438,2]
[350142159,1737651032912,-512.67774885,0.00016438,2]
[350142161,1737651032922,-500.0,0.00016438,2]
[350142163,1737651032931,-500.0,0.00016438,2]
[350142166,1737651032941,-500.0,0.00016438,2]
[350142169,1737651032950,-500.0,0.00016438,2]
[350142173,1737651032959,-500.0,0.00016438,2]
[350142176,1737651032969,-500.0,0.00016438,2]
[350142179,1737651032983,-500.0,0.00016438,2]
[350142181,1737651032992,-500.0,0.00016438,2]
[350142184,1737651033001,-500.0,0.00016438,2]
[350142187,1737651033010,-500.0,0.00016438,2]
[350142190,1737651033022,-500.0,0.00016438,2]
[350142193,1737651033032,-500.0,0.00016438,2]
[350142196,1737651033041,-500.0,0.00016438,2]
[350142199,1737651033051,-500.0,0.00016438,2]
[350142202,1737651033060,-500.0,0.00016438,2]
[350142205,1737651033073,-500.0,0.00016438,2]